[Event "Early-Titled-Tuesday-Blitz-January-16-2024"]
[Site "Chess.com"]
[Date "2024.01.16"]
[Round "5"]
[White "elpatodice"]
[Black "PawnEatingZombie"]
[Result "1-0"]
[WhiteElo "2406"]
[BlackElo "2135"]
[TimeControl "180+1"]
[EndTime "8:55:59 PST"]
[Termination "elpatodice won by resignation"]

1. e4 {[%clk 0:03:00.9]} 1... e6 {[%clk 0:02:58.7]} 2. d4 {[%clk 0:03:00.8]}
2... d5 {[%clk 0:02:59.3]} 3. Nd2 {[%clk 0:03:01.5]} 3... c5 {[%clk 0:02:58.6]}
4. exd5 {[%clk 0:03:00.4]} 4... Qxd5 {[%clk 0:02:59.5]} 5. dxc5 {[%clk
0:02:59.8]} 5... Nf6 {[%clk 0:02:59]} 6. Ngf3 {[%clk 0:03:00.3]} 6... Qxc5
{[%clk 0:02:59]} 7. Bc4 {[%clk 0:02:55]} 7... Be7 {[%clk 0:02:58.7]} 8. O-O
{[%clk 0:02:54.4]} 8... O-O {[%clk 0:02:56.3]} 9. Qe2 {[%clk 0:02:54.6]} 9...
Qc7 {[%clk 0:01:49.9]} 10. Nb3 {[%clk 0:02:51.8]} 10... b6 {[%clk 0:01:48.2]}
11. Ne5 {[%clk 0:02:37.7]} 11... Bb7 {[%clk 0:01:46.7]} 12. Bf4 {[%clk
0:02:38.2]} 12... Bd6 {[%clk 0:01:40.3]} 13. Rad1 {[%clk 0:02:36.8]} 13... Nd5
{[%clk 0:01:40.1]} 14. Bg3 {[%clk 0:02:34.5]} 14... Rc8 {[%clk 0:00:51.3]} 15.
Bd3 {[%clk 0:02:28.7]} 15... Nd7 {[%clk 0:00:42.1]} 16. Bxh7+ {[%clk 0:02:22]}
16... Kxh7 {[%clk 0:00:37.1]} 17. Qh5+ {[%clk 0:02:21.7]} 17... Kg8 {[%clk
0:00:35.1]} 18. Qxf7+ {[%clk 0:02:21.5]} 18... Kh7 {[%clk 0:00:33.9]} 19. Rd4
{[%clk 0:01:49]} 1-0

[Event "Early-Titled-Tuesday-Blitz-January-16-2024"]
[Site "Chess.com"]
[Date "2024.01.16"]
[Round "5"]
[White "TigrVShlyape"]
[Black "PepeCuenca"]
[Result "1-0"]
[WhiteElo "2938"]
[BlackElo "2697"]
[TimeControl "180+1"]
[EndTime "8:56:04 PST"]
[Termination "TigrVShlyape won by resignation"]

1. d4 {[%clk 0:03:00.9]} 1... d6 {[%clk 0:02:56.4]} 2. Nf3 {[%clk 0:02:58.7]}
2... Nf6 {[%clk 0:02:55.6]} 3. Bf4 {[%clk 0:02:56.2]} 3... g6 {[%clk 0:02:51.5]}
4. h3 {[%clk 0:02:55.2]} 4... Bg7 {[%clk 0:02:51.9]} 5. c3 {[%clk 0:02:55.1]}
5... O-O {[%clk 0:02:51.9]} 6. Nbd2 {[%clk 0:02:55]} 6... c5 {[%clk 0:02:48.2]}
7. dxc5 {[%clk 0:02:54.5]} 7... dxc5 {[%clk 0:02:48.7]} 8. e4 {[%clk 0:02:54.9]}
8... Nc6 {[%clk 0:02:47.3]} 9. Bc4 {[%clk 0:02:50.8]} 9... Na5 {[%clk
0:02:25.3]} 10. Be2 {[%clk 0:02:49.9]} 10... b6 {[%clk 0:02:24.1]} 11. O-O
{[%clk 0:02:42.9]} 11... Bb7 {[%clk 0:02:24]} 12. Qc2 {[%clk 0:02:37.7]} 12...
Qc8 {[%clk 0:02:20.4]} 13. Rfe1 {[%clk 0:02:33.6]} 13... Nd7 {[%clk 0:01:51.3]}
14. e5 {[%clk 0:02:14.7]} 14... Rd8 {[%clk 0:01:37]} 15. e6 {[%clk 0:02:14]}
15... fxe6 {[%clk 0:01:37]} 16. Ng5 {[%clk 0:02:03.7]} 16... Nf8 {[%clk
0:01:35.9]} 17. Bg4 {[%clk 0:02:01.3]} 17... Qc6 {[%clk 0:01:09]} 18. Ndf3
{[%clk 0:01:58.5]} 18... Bc8 {[%clk 0:01:07.1]} 19. Ne5 {[%clk 0:01:50.6]} 19...
Qe8 {[%clk 0:01:02.2]} 20. h4 {[%clk 0:01:47.4]} 20... Nc6 {[%clk 0:00:56]} 21.
Nxc6 {[%clk 0:01:46.6]} 21... Qxc6 {[%clk 0:00:54.7]} 22. Bf3 {[%clk 0:01:46.9]}
1-0

[Event "Early-Titled-Tuesday-Blitz-January-16-2024"]
[Site "Chess.com"]
[Date "2024.01.16"]
[Round "5"]
[White "quvnoq_muxlis"]
[Black "Marcin"]
[Result "1-0"]
[WhiteElo "2667"]
[BlackElo "2494"]
[TimeControl "180+1"]
[EndTime "8:56:18 PST"]
[Termination "quvnoq_muxlis won by resignation"]

1. e4 {[%clk 0:03:00.9]} 1... e5 {[%clk 0:02:58.4]} 2. Nf3 {[%clk 0:03:00.7]}
2... Nc6 {[%clk 0:02:57.4]} 3. Bc4 {[%clk 0:03:01.4]} 3... h6 {[%clk 0:02:52.4]}
4. O-O {[%clk 0:03:00.9]} 4... Nf6 {[%clk 0:02:52.8]} 5. Re1 {[%clk 0:03:01.5]}
5... Be7 {[%clk 0:02:46.4]} 6. c3 {[%clk 0:02:59.7]} 6... O-O {[%clk 0:02:45.9]}
7. d4 {[%clk 0:02:59.9]} 7... d6 {[%clk 0:02:46.4]} 8. h3 {[%clk 0:03:00]} 8...
Re8 {[%clk 0:02:25.4]} 9. Bb3 {[%clk 0:02:33.9]} 9... Bf8 {[%clk 0:02:23.7]} 10.
Nbd2 {[%clk 0:02:31.8]} 10... Na5 {[%clk 0:02:10.6]} 11. Bc2 {[%clk 0:02:29]}
11... c5 {[%clk 0:02:10.9]} 12. d5 {[%clk 0:02:22]} 12... b5 {[%clk 0:02:09.7]}
13. b4 {[%clk 0:02:14]} 13... Nb7 {[%clk 0:02:01.7]} 14. a4 {[%clk 0:02:13.3]}
14... bxa4 {[%clk 0:01:59.4]} 15. Bxa4 {[%clk 0:02:14.2]} 15... Bd7 {[%clk
0:01:59.3]} 16. Nc4 {[%clk 0:02:11.7]} 16... Bxa4 {[%clk 0:01:58.7]} 17. Qxa4
{[%clk 0:02:12.6]} 17... cxb4 {[%clk 0:01:57.3]} 18. cxb4 {[%clk 0:02:12.1]}
18... Nd7 {[%clk 0:01:48.8]} 19. Qa6 {[%clk 0:02:01]} 19... Nb6 {[%clk
0:01:42.3]} 20. Na3 {[%clk 0:01:31.4]} 20... Qd7 {[%clk 0:01:38.2]} 21. Be3
{[%clk 0:01:27.8]} 21... Qa4 {[%clk 0:01:23.5]} 22. Qxb7 {[%clk 0:01:19.2]}
22... Qxb4 {[%clk 0:01:09.9]} 23. Bxb6 {[%clk 0:01:01.2]} 23... axb6 {[%clk
0:01:05.8]} 24. Nc2 {[%clk 0:01:00.2]} 1-0

[Event "Early-Titled-Tuesday-Blitz-January-16-2024"]
[Site "Chess.com"]
[Date "2024.01.16"]
[Round "5"]
[White "HATilay"]
[Black "ContrVersia"]
[Result "0-1"]
[WhiteElo "2575"]
[BlackElo "2835"]
[TimeControl "180+1"]
[EndTime "8:56:19 PST"]
[Termination "ContrVersia won on time"]

1. d4 {[%clk 0:03:00.9]} 1... Nf6 {[%clk 0:02:58.9]} 2. c4 {[%clk 0:03:00.7]}
2... c5 {[%clk 0:02:55.7]} 3. Nf3 {[%clk 0:02:59.8]} 3... g6 {[%clk 0:02:49.6]}
4. g3 {[%clk 0:02:57]} 4... Bg7 {[%clk 0:02:48.2]} 5. Bg2 {[%clk 0:02:57.4]}
5... cxd4 {[%clk 0:02:42.8]} 6. Nxd4 {[%clk 0:02:57.2]} 6... Nc6 {[%clk
0:02:43.1]} 7. O-O {[%clk 0:02:52.5]} 7... O-O {[%clk 0:02:40.9]} 8. Nc3 {[%clk
0:02:49]} 8... Ng4 {[%clk 0:02:34.9]} 9. e3 {[%clk 0:02:35.1]} 9... d6 {[%clk
0:02:34.9]} 10. Nxc6 {[%clk 0:02:26.4]} 10... bxc6 {[%clk 0:02:35.8]} 11. Bxc6
{[%clk 0:02:26.8]} 11... Rb8 {[%clk 0:02:36.2]} 12. Bg2 {[%clk 0:02:06.1]} 12...
Ne5 {[%clk 0:02:27.9]} 13. Qe2 {[%clk 0:01:54.7]} 13... Ba6 {[%clk 0:02:24.8]}
14. Rd1 {[%clk 0:01:26.9]} 14... Bxc4 {[%clk 0:02:23.2]} 15. Qc2 {[%clk
0:01:27.1]} 15... Qa5 {[%clk 0:02:20.7]} 16. Nd5 {[%clk 0:00:46.7]} 16... Bxd5
{[%clk 0:01:59.3]} 17. Bxd5 {[%clk 0:00:46.7]} 17... Rfc8 {[%clk 0:01:59.8]} 18.
Qe2 {[%clk 0:00:46.8]} 18... e6 {[%clk 0:01:59.4]} 19. Bg2 {[%clk 0:00:24.1]}
19... d5 {[%clk 0:01:59.4]} 20. Kf1 {[%clk 0:00:07.5]} 20... Nc4 {[%clk
0:01:58.1]} 21. b4 {[%clk 0:00:01.7]} 21... Qxb4 {[%clk 0:01:55.2]} 0-1

[Event "Early-Titled-Tuesday-Blitz-January-16-2024"]
[Site "Chess.com"]
[Date "2024.01.16"]
[Round "5"]
[White "wild3000"]
[Black "j2806"]
[Result "1-0"]
[WhiteElo "2393"]
[BlackElo "2081"]
[TimeControl "180+1"]
[EndTime "8:56:20 PST"]
[Termination "wild3000 won by resignation"]

1. a3 {[%clk 0:02:59.4]} 1... d5 {[%clk 0:02:59.3]} 2. e3 {[%clk 0:02:59.6]}
2... e5 {[%clk 0:02:56.4]} 3. d4 {[%clk 0:02:59.9]} 3... e4 {[%clk 0:02:54.6]}
4. c4 {[%clk 0:03:00]} 4... c6 {[%clk 0:02:51.6]} 5. Nc3 {[%clk 0:03:00.9]} 5...
Nf6 {[%clk 0:02:50.7]} 6. b4 {[%clk 0:03:00.5]} 6... Be6 {[%clk 0:02:37.9]} 7.
cxd5 {[%clk 0:02:53.8]} 7... cxd5 {[%clk 0:02:32.6]} 8. Nge2 {[%clk 0:02:54.1]}
8... Bd6 {[%clk 0:02:30.4]} 9. Nf4 {[%clk 0:02:52.8]} 9... Bxf4 {[%clk
0:02:28.6]} 10. exf4 {[%clk 0:02:53.7]} 10... Nc6 {[%clk 0:02:23.6]} 11. Be3
{[%clk 0:02:52.8]} 11... Rc8 {[%clk 0:02:20.8]} 12. Rc1 {[%clk 0:02:52.7]} 12...
O-O {[%clk 0:02:19.7]} 13. Be2 {[%clk 0:02:51.9]} 13... Qd7 {[%clk 0:02:11.4]}
14. O-O {[%clk 0:02:47.4]} 14... Ng4 {[%clk 0:02:10.9]} 15. Na4 {[%clk
0:02:42.5]} 15... Nxe3 {[%clk 0:02:03.8]} 16. fxe3 {[%clk 0:02:42.4]} 16... Qe7
{[%clk 0:01:42.5]} 17. f5 {[%clk 0:02:30.1]} 17... Bd7 {[%clk 0:01:37]} 18. Nc5
{[%clk 0:02:28.7]} 18... f6 {[%clk 0:01:32.9]} 19. Nxb7 {[%clk 0:02:18.2]} 19...
Bxf5 {[%clk 0:01:29.9]} 20. Rxf5 {[%clk 0:02:19.1]} 20... Qxb7 {[%clk
0:01:27.1]} 21. Rxd5 {[%clk 0:02:09.6]} 21... Ne7 {[%clk 0:00:52.3]} 22. Rdc5
{[%clk 0:02:04.3]} 22... Rxc5 {[%clk 0:00:49.7]} 23. dxc5 {[%clk 0:02:03.6]}
23... a5 {[%clk 0:00:46.1]} 24. Bc4+ {[%clk 0:02:02.6]} 24... Kh8 {[%clk
0:00:45]} 25. b5 {[%clk 0:02:02.9]} 25... Rc8 {[%clk 0:00:43.3]} 26. c6 {[%clk
0:02:02.6]} 26... Qb6 {[%clk 0:00:43.4]} 27. Qd4 {[%clk 0:02:01.5]} 27... Qxd4
{[%clk 0:00:38.2]} 28. exd4 {[%clk 0:02:01.7]} 28... Rd8 {[%clk 0:00:27.3]} 29.
c7 {[%clk 0:02:00.3]} 29... Rxd4 {[%clk 0:00:18.8]} 30. b6 {[%clk 0:02:00.2]}
1-0

[Event "Early-Titled-Tuesday-Blitz-January-16-2024"]
[Site "Chess.com"]
[Date "2024.01.16"]
[Round "5"]
[White "01Roman"]
[Black "RojonR"]
[Result "1-0"]
[WhiteElo "2462"]
[BlackElo "2599"]
[TimeControl "180+1"]
[EndTime "8:56:30 PST"]
[Termination "01Roman won on time"]

1. Nf3 {[%clk 0:03:00.9]} 1... b6 {[%clk 0:02:56.2]} 2. c4 {[%clk 0:03:00.4]}
2... Bb7 {[%clk 0:02:53]} 3. g3 {[%clk 0:03:00.1]} 3... Nf6 {[%clk 0:02:44.9]}
4. Bg2 {[%clk 0:02:58.8]} 4... c5 {[%clk 0:02:42.5]} 5. O-O {[%clk 0:02:58.3]}
5... e6 {[%clk 0:02:39.6]} 6. Nc3 {[%clk 0:02:56.7]} 6... Be7 {[%clk 0:02:39.3]}
7. d4 {[%clk 0:02:55.5]} 7... cxd4 {[%clk 0:02:31.9]} 8. Qxd4 {[%clk 0:02:56.4]}
8... O-O {[%clk 0:02:32.4]} 9. Bf4 {[%clk 0:02:52.3]} 9... d5 {[%clk 0:02:05.5]}
10. cxd5 {[%clk 0:02:47.5]} 10... Nxd5 {[%clk 0:02:00.7]} 11. Nxd5 {[%clk
0:02:46.7]} 11... Bxd5 {[%clk 0:01:59.9]} 12. Rfd1 {[%clk 0:02:43.9]} 12... Nc6
{[%clk 0:01:55.3]} 13. Qd3 {[%clk 0:02:43.2]} 13... Bf6 {[%clk 0:01:25.3]} 14.
e4 {[%clk 0:02:39.7]} 14... Nb4 {[%clk 0:01:24.4]} 15. Qe2 {[%clk 0:02:37.7]}
15... Re8 {[%clk 0:00:43.4]} 16. exd5 {[%clk 0:02:35.5]} 16... exd5 {[%clk
0:00:44.3]} 17. Qd2 {[%clk 0:02:35.4]} 17... Nc6 {[%clk 0:00:40]} 18. Rac1
{[%clk 0:02:33.5]} 18... Rc8 {[%clk 0:00:36.4]} 19. Bg5 {[%clk 0:02:32.3]} 19...
Bxg5 {[%clk 0:00:35.3]} 20. Nxg5 {[%clk 0:02:30.4]} 20... h6 {[%clk 0:00:34.9]}
21. Nf3 {[%clk 0:02:29.9]} 21... Ne5 {[%clk 0:00:28.2]} 22. Rxc8 {[%clk
0:02:27.6]} 22... Nxf3+ {[%clk 0:00:27.1]} 23. Bxf3 {[%clk 0:02:27.4]} 23...
Qxc8 {[%clk 0:00:27.7]} 24. Qxd5 {[%clk 0:02:25.8]} 24... Qc2 {[%clk 0:00:21.3]}
25. Qd2 {[%clk 0:02:25.5]} 25... Qg6 {[%clk 0:00:19.6]} 26. Kg2 {[%clk
0:02:23.3]} 26... a6 {[%clk 0:00:17.5]} 27. Qd6 {[%clk 0:02:17.9]} 27... Re6
{[%clk 0:00:11.5]} 28. Qb8+ {[%clk 0:02:15.9]} 28... Kh7 {[%clk 0:00:11.3]} 29.
Rd8 {[%clk 0:02:16.7]} 29... Qg5 {[%clk 0:00:03.2]} 30. h4 {[%clk 0:02:12.6]}
1-0

[Event "Early-Titled-Tuesday-Blitz-January-16-2024"]
[Site "Chess.com"]
[Date "2024.01.16"]
[Round "5"]
[White "DvaHrasta"]
[Black "bazar-wokzal"]
[Result "1-0"]
[WhiteElo "2445"]
[BlackElo "2594"]
[TimeControl "180+1"]
[EndTime "8:56:33 PST"]
[Termination "DvaHrasta won by resignation"]

1. c4 {[%clk 0:03:00.9]} 1... e5 {[%clk 0:02:59.5]} 2. g3 {[%clk 0:03:00.9]}
2... h5 {[%clk 0:02:59.2]} 3. h3 {[%clk 0:02:57.5]} 3... d5 {[%clk 0:02:53.4]}
4. cxd5 {[%clk 0:02:56.5]} 4... Qxd5 {[%clk 0:02:53.7]} 5. Nf3 {[%clk
0:02:56.3]} 5... e4 {[%clk 0:02:53.4]} 6. Nc3 {[%clk 0:02:53.2]} 6... Qc6 {[%clk
0:02:48.7]} 7. Nd4 {[%clk 0:02:50.1]} 7... Qd7 {[%clk 0:02:38.5]} 8. Nb3 {[%clk
0:02:43.4]} 8... f5 {[%clk 0:02:37.1]} 9. d3 {[%clk 0:02:29.6]} 9... exd3 {[%clk
0:02:34.8]} 10. Qxd3 {[%clk 0:02:28.1]} 10... Qxd3 {[%clk 0:02:34]} 11. exd3
{[%clk 0:02:28]} 11... h4 {[%clk 0:02:27.1]} 12. Bf4 {[%clk 0:02:24]} 12... hxg3
{[%clk 0:02:24.4]} 13. fxg3 {[%clk 0:02:23.2]} 13... Na6 {[%clk 0:02:17.6]} 14.
O-O-O {[%clk 0:02:19.9]} 14... Nf6 {[%clk 0:02:03.3]} 15. Bg2 {[%clk 0:02:18.6]}
15... c6 {[%clk 0:01:59]} 16. Rhe1+ {[%clk 0:02:15.1]} 16... Kf7 {[%clk
0:01:58.7]} 17. d4 {[%clk 0:02:11.5]} 17... Be6 {[%clk 0:01:56.1]} 18. d5 {[%clk
0:02:03.4]} 18... Nxd5 {[%clk 0:01:54.4]} 19. Nxd5 {[%clk 0:02:01.5]} 19... Bxd5
{[%clk 0:01:54.5]} 20. Rxd5 {[%clk 0:01:53]} 20... cxd5 {[%clk 0:01:54.4]} 21.
Bxd5+ {[%clk 0:01:53.1]} 21... Kf6 {[%clk 0:01:47.2]} 22. Re6+ {[%clk
0:01:50.1]} 22... Kf7 {[%clk 0:01:43.5]} 23. Rxa6+ {[%clk 0:01:46.9]} 23... Ke8
{[%clk 0:01:42.1]} 24. Bxb7 {[%clk 0:01:43.1]} 24... Rd8 {[%clk 0:01:41.8]} 25.
h4 {[%clk 0:01:36.8]} 25... Be7 {[%clk 0:01:33.4]} 26. Rxa7 {[%clk 0:01:34.4]}
26... Kf7 {[%clk 0:01:29.5]} 27. a4 {[%clk 0:01:23.1]} 27... g5 {[%clk
0:01:25.5]} 28. hxg5 {[%clk 0:01:18.1]} 28... Kg6 {[%clk 0:01:16.2]} 29. Ra6+
{[%clk 0:01:14.9]} 29... Kh5 {[%clk 0:01:14.8]} 30. Rh6+ {[%clk 0:01:12.2]}
30... Rxh6 {[%clk 0:01:11.2]} 31. gxh6 {[%clk 0:01:12.5]} 31... Bg5 {[%clk
0:01:04.6]} 32. Bxg5 {[%clk 0:01:04.8]} 32... Kxg5 {[%clk 0:01:04.2]} 33. a5
{[%clk 0:01:04.9]} 1-0

[Event "Early-Titled-Tuesday-Blitz-January-16-2024"]
[Site "Chess.com"]
[Date "2024.01.16"]
[Round "5"]
[White "Lady_Nika"]
[Black "Brahianzevich"]
[Result "0-1"]
[WhiteElo "2588"]
[BlackElo "2441"]
[TimeControl "180+1"]
[EndTime "8:56:36 PST"]
[Termination "Brahianzevich won by resignation"]

1. d4 {[%clk 0:03:00.9]} 1... d5 {[%clk 0:02:56.6]} 2. e3 {[%clk 0:03:01.8]}
2... e6 {[%clk 0:02:56]} 3. f4 {[%clk 0:03:02.3]} 3... Nf6 {[%clk 0:02:56.3]} 4.
Nf3 {[%clk 0:03:03.2]} 4... c5 {[%clk 0:02:40.3]} 5. c3 {[%clk 0:03:04.1]} 5...
Nc6 {[%clk 0:02:38.9]} 6. Bd3 {[%clk 0:03:03.5]} 6... Bd6 {[%clk 0:02:26.4]} 7.
O-O {[%clk 0:03:02.7]} 7... O-O {[%clk 0:02:23.6]} 8. Ne5 {[%clk 0:03:02.6]}
8... Ne4 {[%clk 0:02:12.2]} 9. Nd2 {[%clk 0:03:01.7]} 9... f5 {[%clk 0:02:11.8]}
10. Nxe4 {[%clk 0:03:00.9]} 10... fxe4 {[%clk 0:02:07.9]} 11. Be2 {[%clk
0:02:58.5]} 11... Bxe5 {[%clk 0:02:00.9]} 12. fxe5 {[%clk 0:02:57.6]} 12... Bd7
{[%clk 0:01:43.8]} 13. Bd2 {[%clk 0:02:54.2]} 13... Qg5 {[%clk 0:01:41.1]} 14.
Qb3 {[%clk 0:02:51.8]} 14... cxd4 {[%clk 0:01:13.2]} 15. Qxb7 {[%clk 0:02:48.2]}
15... Rfd8 {[%clk 0:01:13]} 16. cxd4 {[%clk 0:02:15.2]} 16... Rab8 {[%clk
0:01:01.2]} 17. Qc7 {[%clk 0:02:08.3]} 17... Rxb2 {[%clk 0:00:51.4]} 18. Rad1
{[%clk 0:02:06.2]} 18... Rxd2 {[%clk 0:00:41.2]} 19. Rxd2 {[%clk 0:01:44]} 19...
Qxe3+ {[%clk 0:00:40.5]} 20. Rf2 {[%clk 0:01:44.4]} 20... Qxd2 {[%clk
0:00:40.6]} 21. Bb5 {[%clk 0:01:44.2]} 21... Qd1+ {[%clk 0:00:22.2]} 22. Rf1
{[%clk 0:01:38.8]} 22... Qxd4+ {[%clk 0:00:20.6]} 23. Kh1 {[%clk 0:01:38.5]}
23... Qb6 {[%clk 0:00:21.1]} 0-1

[Event "Early-Titled-Tuesday-Blitz-January-16-2024"]
[Site "Chess.com"]
[Date "2024.01.16"]
[Round "5"]
[White "crazy_m_attack"]
[Black "DrVitman"]
[Result "0-1"]
[WhiteElo "2465"]
[BlackElo "2788"]
[TimeControl "180+1"]
[EndTime "8:56:37 PST"]
[Termination "DrVitman won on time"]

1. e4 {[%clk 0:03:00.9]} 1... c5 {[%clk 0:02:57.9]} 2. Nf3 {[%clk 0:03:00.9]}
2... e6 {[%clk 0:02:57.1]} 3. d4 {[%clk 0:03:00.1]} 3... cxd4 {[%clk 0:02:58]}
4. Nxd4 {[%clk 0:03:01]} 4... Qb6 {[%clk 0:02:57.5]} 5. Nc3 {[%clk 0:02:54.9]}
5... Bc5 {[%clk 0:02:55.2]} 6. Na4 {[%clk 0:02:35.3]} 6... Qa5+ {[%clk
0:02:54.5]} 7. c3 {[%clk 0:02:33.7]} 7... Bxd4 {[%clk 0:02:53.9]} 8. Qxd4 {[%clk
0:02:31.4]} 8... Nf6 {[%clk 0:02:53.3]} 9. Qc5 {[%clk 0:01:45.6]} 9... Qxc5
{[%clk 0:02:50.8]} 10. Nxc5 {[%clk 0:01:46.5]} 10... d6 {[%clk 0:02:50.5]} 11.
e5 {[%clk 0:01:37.1]} 11... dxc5 {[%clk 0:02:39.5]} 12. exf6 {[%clk 0:01:36.4]}
12... gxf6 {[%clk 0:02:40.4]} 13. Be3 {[%clk 0:01:28.6]} 13... b6 {[%clk
0:02:39.5]} 14. O-O-O {[%clk 0:01:25.5]} 14... Ba6 {[%clk 0:02:36.7]} 15. c4
{[%clk 0:00:58.8]} 15... Nc6 {[%clk 0:02:29.9]} 16. Be2 {[%clk 0:00:58]} 16...
Rd8 {[%clk 0:02:22.1]} 17. Rxd8+ {[%clk 0:00:44.4]} 17... Kxd8 {[%clk 0:02:23]}
18. Rd1+ {[%clk 0:00:39.1]} 18... Ke7 {[%clk 0:02:23.3]} 19. b3 {[%clk
0:00:17.9]} 19... Bb7 {[%clk 0:02:23.2]} 20. Bf3 {[%clk 0:00:17.7]} 20... Na5
{[%clk 0:02:22.6]} 21. Bxb7 {[%clk 0:00:13.2]} 21... Nxb7 {[%clk 0:02:23.5]} 22.
f3 {[%clk 0:00:12.6]} 22... f5 {[%clk 0:02:11]} 23. Bf4 {[%clk 0:00:08.9]} 23...
Rd8 {[%clk 0:02:07.6]} 24. Rxd8 {[%clk 0:00:05.1]} 24... Nxd8 {[%clk 0:02:08.5]}
25. Kc2 {[%clk 0:00:03.1]} 25... Nc6 {[%clk 0:02:07.5]} 26. Kd3 {[%clk
0:00:03.3]} 26... e5 {[%clk 0:02:06]} 27. Bg5+ {[%clk 0:00:03.1]} 27... f6
{[%clk 0:02:04.1]} 28. Bd2 {[%clk 0:00:03.6]} 28... h5 {[%clk 0:02:04]} 29. h4
{[%clk 0:00:02.9]} 29... Nb4+ {[%clk 0:01:59.1]} 30. Bxb4 {[%clk 0:00:02.1]}
30... cxb4 {[%clk 0:02:00]} 31. c5 {[%clk 0:00:02.2]} 31... bxc5 {[%clk
0:02:00.1]} 32. Kc4 {[%clk 0:00:02.8]} 32... e4 {[%clk 0:01:59.9]} 0-1

[Event "Early-Titled-Tuesday-Blitz-January-16-2024"]
[Site "Chess.com"]
[Date "2024.01.16"]
[Round "5"]
[White "Flaccidmoves"]
[Black "Mikasinski"]
[Result "0-1"]
[WhiteElo "2430"]
[BlackElo "2611"]
[TimeControl "180+1"]
[EndTime "8:56:39 PST"]
[Termination "Mikasinski won by resignation"]

1. e4 {[%clk 0:03:00.9]} 1... c5 {[%clk 0:03:00.1]} 2. Nf3 {[%clk 0:02:56.6]}
2... d6 {[%clk 0:03:00.3]} 3. d4 {[%clk 0:02:56.1]} 3... cxd4 {[%clk 0:03:01.2]}
4. Nxd4 {[%clk 0:02:55.2]} 4... Nf6 {[%clk 0:03:01.6]} 5. Nc3 {[%clk 0:02:55.8]}
5... g6 {[%clk 0:03:01.2]} 6. Be3 {[%clk 0:02:55.2]} 6... Bg7 {[%clk 0:03:01.3]}
7. f3 {[%clk 0:02:55.9]} 7... O-O {[%clk 0:03:01.8]} 8. Qd2 {[%clk 0:02:56.6]}
8... Nc6 {[%clk 0:03:02.4]} 9. O-O-O {[%clk 0:02:57]} 9... Bd7 {[%clk
0:03:02.9]} 10. g4 {[%clk 0:02:45.9]} 10... Rc8 {[%clk 0:03:03.2]} 11. h4 {[%clk
0:02:42.4]} 11... Ne5 {[%clk 0:03:02.9]} 12. h5 {[%clk 0:02:38.6]} 12... Qa5
{[%clk 0:03:01.7]} 13. Kb1 {[%clk 0:02:21.9]} 13... Nxf3 {[%clk 0:02:59.7]} 14.
Nxf3 {[%clk 0:02:18]} 14... Rxc3 {[%clk 0:02:59.4]} 15. Qxc3 {[%clk 0:02:09.7]}
15... Qxc3 {[%clk 0:02:59.4]} 16. bxc3 {[%clk 0:02:10.6]} 16... Bxg4 {[%clk
0:02:59.6]} 17. Be2 {[%clk 0:02:02.8]} 17... Nxe4 {[%clk 0:02:58.7]} 18. Rd3
{[%clk 0:01:47.5]} 18... Nxc3+ {[%clk 0:02:53.5]} 19. Rxc3 {[%clk 0:01:43.6]}
19... Bxc3 {[%clk 0:02:53.7]} 20. hxg6 {[%clk 0:01:07.9]} 20... fxg6 {[%clk
0:02:52]} 21. Bc4+ {[%clk 0:00:57.9]} 21... Kh8 {[%clk 0:02:30.6]} 22. Ng5
{[%clk 0:00:57.5]} 22... h5 {[%clk 0:02:26.4]} 23. Ne6 {[%clk 0:00:33.8]} 23...
Rf6 {[%clk 0:02:14.6]} 24. Bd4 {[%clk 0:00:27.8]} 24... Bxd4 {[%clk 0:02:10.2]}
25. Nxd4 {[%clk 0:00:28.7]} 25... Rf4 {[%clk 0:02:09.9]} 26. Bd3 {[%clk
0:00:18.2]} 26... Rxd4 {[%clk 0:02:08.8]} 27. Bxg6 {[%clk 0:00:18.2]} 27... Rd1+
{[%clk 0:02:07.5]} 28. Rxd1 {[%clk 0:00:14.3]} 28... Bxd1 {[%clk 0:02:08.4]} 29.
Be4 {[%clk 0:00:14.9]} 29... b6 {[%clk 0:02:07]} 30. Kc1 {[%clk 0:00:15.2]}
30... Bg4 {[%clk 0:02:07.1]} 31. Kd2 {[%clk 0:00:15.7]} 31... Kg7 {[%clk
0:02:07.6]} 32. Ke3 {[%clk 0:00:16.4]} 32... Kf6 {[%clk 0:02:08.4]} 33. Kf4
{[%clk 0:00:17.2]} 33... e5+ {[%clk 0:02:08.5]} 34. Kg3 {[%clk 0:00:17.4]} 34...
Be6 {[%clk 0:02:09.1]} 35. Kh4 {[%clk 0:00:17.5]} 35... Bxa2 {[%clk 0:02:08.3]}
36. Kxh5 {[%clk 0:00:16.8]} 36... d5 {[%clk 0:02:08.9]} 37. Bd3 {[%clk
0:00:16.9]} 37... e4 {[%clk 0:02:09.1]} 38. Be2 {[%clk 0:00:17.2]} 38... Bc4
{[%clk 0:02:09.8]} 39. Bd1 {[%clk 0:00:17.3]} 39... Ke5 {[%clk 0:02:10.4]} 40.
Kg4 {[%clk 0:00:17.7]} 40... Kd4 {[%clk 0:02:10.6]} 41. Kg3 {[%clk 0:00:18.2]}
41... Kc3 {[%clk 0:02:11]} 42. Kf4 {[%clk 0:00:18.9]} 42... a5 {[%clk
0:02:10.8]} 43. Ke5 {[%clk 0:00:19.2]} 43... a4 {[%clk 0:02:11.3]} 0-1

[Event "Early-Titled-Tuesday-Blitz-January-16-2024"]
[Site "Chess.com"]
[Date "2024.01.16"]
[Round "5"]
[White "inagreV"]
[Black "SmirnovTimofey2000"]
[Result "1-0"]
[WhiteElo "2382"]
[BlackElo "1997"]
[TimeControl "180+1"]
[EndTime "8:56:41 PST"]
[Termination "inagreV won by resignation"]

1. d4 {[%clk 0:02:55.4]} 1... d5 {[%clk 0:02:59.8]} 2. c4 {[%clk 0:02:53.6]}
2... c6 {[%clk 0:02:59.9]} 3. Nc3 {[%clk 0:02:52.9]} 3... Nf6 {[%clk 0:03:00]}
4. Bg5 {[%clk 0:02:52.1]} 4... e6 {[%clk 0:02:59]} 5. e3 {[%clk 0:02:51.5]} 5...
a6 {[%clk 0:02:55.7]} 6. a3 {[%clk 0:02:50]} 6... Be7 {[%clk 0:02:52.3]} 7. Qc2
{[%clk 0:02:48.6]} 7... h6 {[%clk 0:02:51.2]} 8. Bh4 {[%clk 0:02:47.9]} 8...
Nbd7 {[%clk 0:02:51.2]} 9. Rd1 {[%clk 0:02:46.5]} 9... O-O {[%clk 0:02:48.9]}
10. Nf3 {[%clk 0:02:18.3]} 10... Qc7 {[%clk 0:02:24.8]} 11. Bd3 {[%clk
0:01:58.2]} 11... e5 {[%clk 0:02:15.1]} 12. cxd5 {[%clk 0:01:52.6]} 12... cxd5
{[%clk 0:02:08.5]} 13. Nxd5 {[%clk 0:01:35.8]} 13... Qxc2 {[%clk 0:02:08.3]} 14.
Nxe7+ {[%clk 0:01:35.1]} 14... Kh8 {[%clk 0:02:02.9]} 15. Bxc2 {[%clk
0:01:34.9]} 15... exd4 {[%clk 0:01:52.6]} 16. Rxd4 {[%clk 0:01:24.1]} 16... Re8
{[%clk 0:01:49.4]} 17. Nf5 {[%clk 0:01:19.3]} 17... b5 {[%clk 0:01:22.6]} 18.
Nd6 {[%clk 0:01:15.3]} 18... Re6 {[%clk 0:01:18.1]} 19. Bb3 {[%clk 0:01:10.5]}
19... Rb8 {[%clk 0:00:43.9]} 20. Nxf7+ {[%clk 0:01:07]} 20... Kh7 {[%clk
0:00:31.6]} 21. Bxe6 {[%clk 0:01:07.9]} 1-0